bitfinex-derivatives/quotes_ETHF0:USTF0_20250220
["timestamp","ask_amount","ask_price","bid_price","bid_amount"]
[1740059417868,0.7284,2745.4,2745.3,1.3058]
[1740059418076,0.7284,2745.4,2745.3,3.86643585]
[1740059420066,0.5848,2745.8,2745.3,3.13803585]
[1740059420268,0.72838,2745.6,2745.5,0.72835]
[1740059420773,0.5848,2745.8,2745.3,0.5774]
[1740059421073,0.5848,2745.8,2745.7,0.72832]
[1740059421378,1.31309,2745.8,2745.7,0.72832]
[1740059422372,1.31309,2745.8,2745.6,0.72832]
[1740059422373,0.72836,2745.7,2745.6,0.72832]
[1740059422676,0.72836,2745.7,2745.6,2.72832]
[1740059424577,0.72836,2745.7,2745.6,2.0]
[1740059424779,0.72836,2745.7,2745.6,2.72835]
[1740059425484,0.72836,2745.7,2745.6,2.0]
[1740059425676,0.7284,2745.5,2745.4,0.72837]
[1740059425878,0.7284,2745.5,2745.4,2.72837]
[1740059426078,0.7284,2745.5,2745.4,2.0]
[1740059426380,3.93616,2745.7,2745.3,0.5774]
[1740059426569,1.117,2745.4,2745.2,2.0]
[1740059426769,1.82107,2745.3,2744.9,0.00546229]
[1740059426976,0.7285,2745.0,2744.9,0.00546229]
[1740059427979,1.304,2745.0,2744.9,0.00546229]
[1740059428175,0.5755,2745.0,2744.9,0.73399229]
[1740059428484,1.304,2745.0,2744.9,0.00546229]
[1740059429979,0.5755,2745.0,2744.9,0.00546229]
[1740059430175,0.72846,2745.2,2745.0,0.72849]
[1740059430484,0.72846,2745.2,2745.1,0.5765]
[1740059432285,0.7285,2745.0,2744.9,0.00546229]
[1740059444093,3.2078,2745.1,2744.9,0.00546229]
[1740059444293,0.7285,2745.0,2744.9,2.73397229]
[1740059444495,1.0901,2745.3,2744.9,3.10656229]
[1740059444802,1.0901,2745.3,2744.9,1.10656229]
[1740059444991,1.0901,2745.3,2744.9,3.10656229]
[1740059445190,0.7285,2745.0,2744.9,3.83508229]
[1740059445592,0.7285,2745.0,2744.9,21.33508229]
[1740059447602,0.7285,2745.0,2744.9,3.10656229]
[1740059447799,3.2078,2745.5,2745.0,1.82123]
[1740059447999,5.02849,2745.9,2745.4,0.72839]
[1740059448204,0.72835,2745.6,2745.5,1.1382]
[1740059448505,0.72835,2745.6,2745.5,0.5694]
[1740059450298,3.2078,2745.6,2745.2,5.2078]
[1740059450504,3.2078,2745.3,2745.0,2.0]
[1740059450702,0.7285,2745.0,2744.9,3.13496229]
[1740059451107,0.72849,2745.1,2744.9,3.86347229]
[1740059451607,0.7285,2745.0,2744.9,3.86347229]
[1740059452206,0.7285,2745.0,2744.9,3.13496229]
[1740059452405,0.7285,2745.0,2744.9,0.57486229]
[1740059452608,0.7285,2745.0,2744.9,0.00546229]
[1740059452999,1.82134,2744.9,2744.0,0.72876]
[1740059453199,3.7472,2745.2,2743.8,3.7969]
[1740059453200,0.72873,2744.2,2744.1,2.0]
[1740059453407,0.72874,2744.1,2743.9,0.5537]
[1740059453608,0.72874,2744.1,2744.0,2.0]
[1740059453803,0.5327,2744.6,2744.0,1.29028391]
[1740059454003,0.72872,2744.3,2744.0,0.72875]
[1740059454204,0.72872,2744.3,2744.0,0.73421229]
[1740059454405,0.53816229,2744.6,2744.0,0.00546229]
[1740059454609,0.72873,2744.2,2744.0,0.00546229]
[1740059455614,0.72873,2744.2,2744.0,0.73422229]
[1740059456110,0.53816229,2744.6,2744.1,3.76926334]
[1740059456313,0.53816229,2744.6,2744.3,2.0]
[1740059456504,0.72866,2744.4,2744.3,2.0]
[1740059456908,0.53816229,2744.6,2744.4,0.72866]
[1740059457213,0.53816229,2744.6,2744.2,0.72869]
[1740059457514,0.72868,2744.4,2744.3,2.0]
[1740059457709,0.53816229,2744.6,2744.3,2.0]
[1740059458113,1.26678229,2744.6,2744.3,2.0]
[1740059458414,0.72866,2744.5,2744.3,2.0]
[1740059458600,0.72866,2744.5,2744.1,3.2078]
[1740059458601,0.73408229,2744.6,2744.1,3.2078]
[1740059458804,0.00546229,2744.6,2744.5,2.72864]
[1740059459007,0.00546229,2744.6,2744.5,3.85208799]
[1740059459207,0.00546229,2744.6,2744.5,7.68944145]
[1740059459611,0.00546229,2744.6,2744.5,25.18944145]
[1740059459814,3.2078,2745.3,2744.9,2.0]
[1740059460014,3.769,2745.3,2744.9,2.0]
[1740059460315,0.5612,2745.3,2744.9,2.0]
[1740059460510,0.7285,2745.0,2744.9,2.72852]
[1740059460718,0.7285,2745.0,2744.9,3.2893946]
[1740059460906,0.00546229,2745.2,2744.9,2.5608746]
[1740059461216,0.00546229,2745.2,2745.1,2.72846]
[1740059461410,0.00546229,2745.2,2745.1,4.18635703]
[1740059461806,0.00546229,2745.2,2745.1,3.28929234]
[1740059462410,0.73391229,2745.2,2745.1,2.72846]
[1740059462812,0.00546229,2745.2,2745.1,2.72846]
[1740059463010,0.00546229,2745.2,2745.1,3.83889652]
[1740059464018,0.00546229,2745.2,2745.1,3.83876233]
[1740059467414,0.00546229,2745.2,2745.1,3.27816]
[1740059468412,0.00546229,2745.2,2745.1,3.83867454]
[1740059468617,0.00546229,2745.2,2745.1,3.27816]
[1740059468824,0.00546229,2745.2,2745.1,3.83871802]
[1740059474119,0.00546229,2745.2,2745.1,3.27816]
[1740059474315,0.00546229,2745.2,2745.1,4.38997982]
[1740059476120,0.00546229,2745.2,2745.1,4.38978382]
[1740059480330,0.00546229,2745.2,2745.1,4.38970927]
[1740059481426,0.00546229,2745.2,2745.1,3.82966]
[1740059481624,0.73391229,2745.2,2745.1,3.27816]
[1740059482426,0.73391229,2745.2,2745.1,2.0]
[1740059482631,0.72858,2744.7,2744.6,3.2078]
[1740059482824,0.72858,2744.7,2744.6,5.2078]
[1740059483228,0.72857,2744.8,2744.7,0.72856]
[1740059483423,0.72857,2744.8,2744.7,2.72856]
[1740059483829,0.72857,2744.8,2744.7,2.0]
[1740059484325,1.31895,2744.9,2744.8,2.72856]
[1740059486036,0.5904,2744.9,2744.8,2.72856]
[1740059486332,1.31893,2744.9,2744.8,2.72856]
[1740059486633,1.31893,2744.9,2744.8,2.56136212]
[1740059486826,0.5904,2744.9,2744.8,2.0]
[1740059487028,0.5904,2744.9,2744.8,3.29001022]
[1740059487933,0.00546229,2745.2,2745.1,2.72848]
[1740059488237,0.58726229,2745.2,2745.1,20.79028864]
[1740059489229,0.58726229,2745.2,2745.1,21.68925388]
[1740059490232,0.58726229,2745.2,2745.1,20.22848]
[1740059490436,0.58726229,2745.2,2745.1,21.68938586]
[1740059490632,0.58726229,2745.2,2745.1,20.79036687]
[1740059490939,1.31571229,2745.2,2745.1,3.29036687]
[1740059492026,0.58726229,2745.2,2744.7,3.7495]
[1740059492230,0.72854,2744.9,2744.8,3.29068872]
[1740059492432,0.72854,2744.9,2744.8,3.29072858]
[1740059494031,0.72854,2744.9,2744.8,3.29075858]
[1740059496831,0.72854,2744.9,2744.8,2.56219858]
[1740059498543,0.72854,2744.9,2744.8,2.56208829]
[1740059498744,0.72854,2744.9,2744.8,3.29064829]
[1740059498944,0.72854,2744.9,2744.8,2.56208829]
[1740059499643,0.72854,2744.9,2744.8,0.56208829]
[1740059499844,0.72854,2744.9,2744.8,1.29064829]
[1740059500238,0.72854,2744.9,2744.8,0.56208829]
[1740059501945,0.72856,2744.8,2744.7,3.2078]
[1740059502135,1.27496,2744.8,2744.7,2.56210389]
[1740059502342,0.72866,2744.5,2744.4,0.72865]
[1740059502546,0.72866,2744.5,2744.4,3.29075719]
[1740059502738,0.72866,2744.5,2744.4,2.56210719]
[1740059502944,0.72866,2744.5,2744.4,0.5622381]
[1740059503144,0.72869,2744.3,2744.2,0.72872]
[1740059503344,0.72869,2744.3,2744.2,3.29098151]
[1740059503743,0.72869,2744.3,2744.2,2.56226151]
[1740059504045,0.72869,2744.3,2744.2,0.56226151]
[1740059504849,0.5464,2744.4,2744.1,0.72873]
[1740059505049,0.72872,2744.2,2744.1,2.72873]
[1740059505349,0.72872,2744.2,2744.1,3.29073422]
[1740059505746,0.72872,2744.2,2744.1,2.56200422]
[1740059505950,0.72872,2744.2,2744.1,2.72874]
[1740059506444,0.72872,2744.2,2744.1,2.0]
[1740059506653,0.72874,2744.1,2744.0,0.00546229]
[1740059506853,0.72874,2744.1,2744.0,0.73422229]
[1740059507053,0.72874,2744.1,2744.0,0.00546229]
[1740059507347,0.72874,2744.1,2744.0,0.73423229]
[1740059508053,0.7287,2744.3,2744.2,0.72869]
[1740059508252,0.5464,2744.4,2744.3,0.72869]
[1740059508455,0.5464,2744.4,2744.3,2.72869]
[1740059508857,3.2078,2744.6,2744.5,0.72864]
[1740059509358,3.2078,2744.6,2744.4,2.0]
[1740059509543,3.93643,2744.6,2744.5,0.72864]
[1740059509948,3.2078,2744.6,2744.2,1.0889]
[1740059510157,3.93642,2744.6,2744.5,0.72864]
[1740059510547,3.2078,2744.6,2744.5,0.72864]
[1740059510749,3.2078,2744.6,2744.5,2.72864]
[1740059510949,0.5739,2744.7,2744.5,2.0]
[1740059511149,0.5739,2744.7,2744.6,0.72861]
[1740059511446,0.5739,2744.7,2744.6,1.29009075]
[1740059511646,0.5739,2744.7,2744.6,0.72861]
[1740059512253,1.30248,2744.7,2744.6,0.72861]
[1740059513054,0.5739,2744.7,2744.6,0.72861]
[1740059514756,1.30248,2744.7,2744.6,0.72861]
[1740059515261,0.72864,2744.5,2744.4,3.2078]
[1740059515961,1.29104,2744.5,2744.4,3.2078]
[1740059516755,0.72866,2744.4,2744.3,2.72867]
[1740059517150,0.72866,2744.4,2744.3,2.0]
[1740059517352,0.72874,2744.1,2744.0,3.21326229]
[1740059517561,0.72874,2744.2,2744.1,0.72873]
[1740059517961,0.72874,2744.1,2744.0,3.94201229]
[1740059518161,0.72874,2744.1,2744.0,6.50381986]
[1740059518761,0.72874,2744.2,2744.1,0.72873]
[1740059519264,0.72874,2744.1,2744.0,3.21326229]
[1740059519459,0.72874,2744.1,2744.0,5.94203229]
[1740059520162,0.72874,2744.1,2744.0,5.21326229]
[1740059520357,0.72874,2744.1,2744.0,2.00546229]
[1740059520862,0.72874,2744.1,2744.0,0.00546229]
[1740059521960,0.72874,2744.1,2743.6,3.2078]
[1740059521961,0.72885,2743.7,2743.6,3.2078]
[1740059522152,0.7289,2743.5,2743.4,18.6345]
[1740059522357,0.7289,2743.5,2743.4,21.92548194]
[1740059522655,0.7289,2743.5,2743.4,3.11440138]
[1740059522859,0.7289,2743.5,2743.4,0.5523]
[1740059523160,0.72896,2743.3,2743.2,22.02170398]
[1740059523465,0.72896,2743.3,2743.2,2.00546229]
[1740059523858,0.72896,2743.3,2743.2,0.00546229]
[1740059530752,3.93676,2743.3,2743.2,0.00546229]
[1740059530960,3.2078,2743.3,2742.6,0.5827]
[1740059531263,0.72912,2742.7,2742.6,2.5827]
[1740059531964,0.72912,2742.7,2742.6,20.0827]
[1740059532461,0.72912,2742.7,2742.6,2.5827]
[1740059532966,0.72912,2742.7,2742.6,20.0827]
[1740059533373,0.72912,2742.7,2742.6,20.81184]
[1740059533665,0.72912,2742.7,2742.6,20.0827]
[1740059536167,1.84651,2742.8,2742.7,0.72912]
[1740059536363,1.82236,2743.4,2742.6,18.0827]
[1740059536569,4.0209,2743.4,2742.8,2.0]
[1740059536867,0.72905,2743.0,2742.9,0.72904]
[1740059537162,0.72909,2742.9,2742.8,0.72907]
[1740059537367,0.72909,2742.9,2742.8,2.72907]
[1740059537969,0.72905,2743.0,2742.9,0.72904]
[1740059538569,2.34786,2743.4,2743.3,0.72896]
[1740059538770,0.72902,2743.1,2743.0,0.72901]
[1740059539462,5.84326,2743.4,2742.8,0.5509]
[1740059539765,5.84326,2743.4,2742.7,5.03057]
[1740059539766,0.72906,2743.0,2742.9,2.0]
[1740059539970,0.72909,2742.8,2742.7,3.2078]
[1740059540263,0.72909,2742.8,2742.7,2.0]
[1740059541261,0.72909,2742.8,2742.7,2.72912]
[1740059542469,0.72909,2742.8,2742.7,2.0]
[1740059542872,0.72909,2742.8,2742.7,2.72912]
[1740059543571,0.72905,2743.0,2742.9,0.72904]
[1740059543877,0.5595,2743.2,2742.7,3.2078]
[1740059544071,0.5595,2743.2,2742.9,2.0]
[1740059544370,0.72904,2743.0,2742.9,2.72904]
[1740059545273,0.72904,2743.0,2742.9,2.0]
[1740059546267,0.72904,2743.0,2742.6,1.31183]
[1740059546268,0.72912,2742.7,2742.6,1.31183]
[1740059546468,0.72912,2742.7,2742.6,3.31183]
[1740059546661,1.82247,2743.2,2742.7,0.7291]
[1740059546967,1.31455,2743.0,2742.9,0.72906]
[1740059547165,1.31455,2743.0,2742.9,1.31816]
[1740059547973,0.5855,2743.0,2742.9,1.31816]
[1740059548272,0.72902,2743.2,2743.1,0.729]
[1740059548668,0.72903,2743.1,2743.0,0.72902]
[1740059549071,0.72904,2743.0,2742.9,1.31814]
[1740059549273,0.72909,2742.8,2742.7,3.9369]
[1740059549478,0.72909,2742.8,2742.7,6.49975402]
[1740059550271,0.72909,2742.8,2742.7,6.50011564]
[1740059550474,0.5431,2743.0,2742.7,5.77101564]
[1740059550673,0.72909,2742.9,2742.8,2.72906]
[1740059551175,0.72909,2742.9,2742.8,2.0]
[1740059551476,0.72909,2742.9,2742.8,3.29280376]
[1740059551771,1.27215,2743.0,2742.9,0.72906]
[1740059551970,1.27215,2743.0,2742.9,1.29277376]
[1740059552171,1.27215,2743.0,2742.9,1.29274854]
[1740059553073,0.72909,2742.8,2742.7,3.93689]
[1740059553275,0.72909,2742.8,2742.7,3.29308941]
[1740059553575,0.72914,2742.6,2742.5,0.72916]
[1740059553765,0.72914,2742.6,2742.5,2.56412699]
[1740059553974,0.72914,2742.6,2742.5,3.29329699]
[1740059554176,1.27264,2742.6,2742.5,3.29329699]
[1740059558175,1.27264,2742.6,2742.5,3.2933642]
[1740059558776,1.27264,2742.6,2742.5,2.5641942]
[1740059558972,0.72917,2742.5,2742.4,0.00546229]
[1740059559166,1.29077,2742.5,2742.4,0.00546229]
[1740059563076,6.5616,2742.5,2742.1,3.2078]
[1740059563277,0.72925,2742.2,2742.1,3.2078]
[1740059563866,0.72925,2742.2,2741.6,0.5665]
[1740059563867,0.72933,2741.9,2741.8,3.2078]
[1740059565770,0.5685,2742.0,2741.7,0.72938]
[1740059565976,0.72938,2741.7,2741.6,0.00546229]
[1740059567077,0.5685,2742.0,2741.6,0.00546229]
[1740059567377,1.09426229,2742.1,2742.0,0.7293]
[1740059567775,0.55046229,2742.1,2742.0,1.3132]
[1740059567979,0.55046229,2742.1,2741.6,3.21326229]
[1740059568282,0.72938,2741.7,2741.6,0.00546229]
[1740059568474,0.72938,2741.7,2741.6,2.00546229]
[1740059569074,1.28968,2741.7,2741.6,2.00546229]
[1740059569483,1.28968,2741.7,2741.6,0.00546229]
[1740059570180,0.72936,2741.8,2741.7,0.72938]
[1740059570383,0.72936,2741.8,2741.7,1.32008]
[1740059571388,0.72936,2741.8,2741.7,0.5907]
[1740059571885,0.72938,2741.7,2741.6,0.00546229]
[1740059572783,0.72938,2741.7,2741.6,0.73487229]
[1740059575184,0.72935,2741.9,2741.8,0.72933]
[1740059575884,1.1083,2742.0,2741.7,0.5763]
[1740059576085,0.72936,2741.8,2741.7,3.30566]
[1740059577487,0.72936,2741.8,2741.7,3.30568]
[1740059590392,1.1083,2742.0,2741.7,2.5763]
[1740059590590,0.72936,2741.9,2741.8,0.72933]
[1740059591186,0.72936,2741.8,2741.7,1.30565]
[1740059591386,0.72936,2741.8,2741.7,3.30565]
[1740059591892,0.72936,2741.8,2741.7,3.86745408]
[1740059593094,1.1083,2742.0,2741.8,0.72933]
[1740059593095,0.72933,2741.9,2741.8,0.72933]
[1740059593288,0.72933,2741.9,2741.8,1.29113408]
[1740059593692,0.72933,2741.9,2741.8,1.291416]
[1740059594783,1.1083,2742.0,2741.9,0.72933]
[1740059594988,1.2896,2742.0,2741.9,1.291416]
[1740059595796,1.2896,2742.0,2741.9,1.29129477]
[1740059597198,0.5603,2742.0,2741.9,1.29129477]
[1740059597390,0.7293,2742.0,2741.9,1.29129477]
[1740059597608,0.73476229,2742.1,2742.0,0.7293]
[1740059600594,0.73474229,2742.1,2742.0,0.7293]
[1740059601493,0.00546229,2742.1,2742.0,6.4989351]
[1740059601696,0.5871,2742.7,2742.0,6.6685531]
[1740059601896,0.72917,2742.6,2742.5,0.72915]
[1740059602197,0.5871,2742.7,2742.3,2.0]
[1740059602401,0.5685,2742.5,2742.0,0.7293]
[1740059602593,0.72925,2742.2,2742.1,2.0]
[1740059602792,0.72925,2742.2,2742.1,2.72928]
[1740059603702,1.30057229,2742.4,2742.3,0.72922]
[1740059604495,0.57136229,2742.4,2742.1,0.55]
[1740059604701,0.72924,2742.3,2742.2,1.29059586]
[1740059605602,0.57136229,2742.4,2742.2,0.56136586]
[1740059605799,1.30056229,2742.4,2742.3,0.72922]
[1740059607303,0.57136229,2742.4,2742.3,0.72922]
[1740059607702,1.30056229,2742.4,2742.3,0.72922]
[1740059609696,0.57136229,2742.4,2742.3,0.72922]
[1740059609895,1.30056229,2742.4,2742.3,0.72922]
[1740059610302,1.30056229,2742.4,2742.3,2.72922]
[1740059614511,0.57136229,2742.4,2742.3,2.72922]
[1740059615206,1.30056229,2742.4,2742.3,2.72922]
[1740059618713,0.57136229,2742.4,2742.3,2.72922]
[1740059620211,1.30056229,2742.4,2742.3,2.72922]
[1740059621319,0.57136229,2742.4,2742.3,2.72922]
[1740059621615,1.30056229,2742.4,2742.3,2.72922]
[1740059621916,0.57136229,2742.4,2742.3,2.72922]
[1740059622517,1.30056229,2742.4,2742.3,2.72922]
[1740059623316,1.30056229,2742.4,2742.3,0.72922]
[1740059626519,1.30056229,2742.4,2742.3,1.2906681]
[1740059626714,1.30056229,2742.4,2742.3,1.290673]
[1740059626918,1.30056229,2742.4,2742.3,1.29066984]
[1740059627115,1.30056229,2742.4,2742.3,0.72922]
[1740059627520,1.30056229,2742.4,2742.3,1.29073712]
[1740059628025,1.30056229,2742.4,2742.3,0.72922]
[1740059628223,1.30056229,2742.4,2742.3,1.29082724]
[1740059628421,1.30056229,2742.4,2742.3,0.72922]
[1740059629129,1.30056229,2742.4,2742.3,1.29093721]
[1740059630328,1.30056229,2742.4,2742.3,1.29093601]
[1740059632227,1.30056229,2742.4,2742.3,1.29123595]
[1740059634025,1.30056229,2742.4,2742.3,1.29140153]
[1740059636430,1.30056229,2742.4,2742.3,1.29142414]
[1740059639036,0.57136229,2742.4,2742.3,1.29142414]
[1740059639231,1.30056229,2742.4,2742.3,1.29142414]
[1740059640433,0.57136229,2742.4,2742.3,1.29142414]
[1740059640633,0.57136229,2742.4,2742.3,1.29142382]
[1740059640935,1.30056229,2742.4,2742.3,1.29142382]
[1740059641135,0.57136229,2742.4,2742.3,1.29142382]
[1740059642437,0.00546229,2742.4,2742.3,4.19093578]
[1740059642624,0.00546229,2742.4,2742.3,4.38852382]
[1740059642823,0.00546229,2742.4,2742.3,5.28797263]
[1740059644339,2.399,2743.1,2742.5,2.0]
[1740059644531,1.3047,2742.9,2742.8,0.72906]
[1740059645239,0.5756,2742.9,2742.8,0.72906]
[1740059645431,1.27885,2743.0,2742.9,0.72906]
[1740059645738,0.00546229,2743.1,2742.9,2.56172093]
[1740059646034,0.00546229,2743.1,2743.0,1.83433795]
[1740059646335,0.00546229,2743.1,2743.0,3.83433795]
[1740059646836,0.00546229,2743.1,2743.0,4.38223795]
[1740059649834,0.00546229,2743.1,2743.0,4.38049389]
[1740059651639,2.29e-06,2743.1,2743.0,3.82054]
[1740059651835,2.29e-06,2743.1,2743.0,5.27515247]
[1740059652036,2.29e-06,2743.1,2743.0,7.67415247]
[1740059652338,2.29e-06,2743.1,2743.0,6.77901528]
[1740059653834,2.29e-06,2743.1,2743.0,13.67298519]
[1740059654737,2.29e-06,2743.1,2743.0,25.17298519]
[1740059654930,2.29e-06,2743.1,2743.0,31.17298519]
[1740059655137,2.29e-06,2743.1,2743.0,25.17298519]
[1740059656440,2.29e-06,2743.1,2743.0,24.27857491]
[1740059656635,2.29e-06,2743.1,2743.0,25.17204583]
[1740059656940,2.29e-06,2743.1,2743.0,30.27857491]
[1740059658244,2.29e-06,2743.1,2743.0,24.27857491]
[1740059659842,2.29e-06,2743.1,2743.0,24.27771954]
[1740059661739,2.29e-06,2743.1,2743.0,31.17045678]
[1740059661941,0.566,2744.0,2743.9,0.7288]
[1740059662139,0.5905,2744.6,2743.9,5.9366]
[1740059662339,0.72867,2744.5,2744.4,0.72864]
[1740059662637,1.7121,2744.6,2744.5,0.72864]
[1740059663037,1.7121,2744.6,2744.5,2.72864]
[1740059664037,1.7121,2744.6,2744.5,5.93644]
[1740059666447,2.44071,2744.6,2744.5,2.72864]
[1740059668550,1.7121,2744.6,2744.5,2.72864]
[1740059668742,2.44071,2744.6,2744.5,2.72864]
[1740059672947,0.72866,2744.4,2744.3,0.00546229]
[1740059675146,0.72866,2744.4,2744.3,0.73415229]
[1740059675346,0.72866,2744.4,2744.3,0.00546229]
[1740059676345,0.72866,2744.4,2744.3,0.73415229]
[1740059676947,1.7121,2744.6,2744.3,0.00546229]
[1740059677349,1.7121,2744.6,2744.5,0.72864]
[1740059677550,0.5905,2744.6,2744.5,2.72864]
[1740059678257,0.57536229,2744.8,2744.7,0.72858]
[1740059679252,1.30392229,2744.8,2744.7,0.72858]
[1740059680051,0.57536229,2744.8,2744.7,0.72858]
[1740059680257,1.30392229,2744.8,2744.7,0.72858]
[1740059682354,0.57536229,2744.8,2744.7,0.72858]
[1740059682549,0.00546229,2744.8,2744.7,2.72858]
[1740059683757,0.73402229,2744.8,2744.7,2.72858]
[1740059684657,0.73402229,2744.8,2744.7,2.0]
[1740059685157,0.00546229,2744.8,2744.4,3.2078]
[1740059685461,1.82688229,2744.8,2744.5,2.0]
[1740059685669,0.72861,2744.6,2744.5,2.0]
[1740059685859,0.72866,2744.4,2744.3,0.00546229]
[1740059686163,0.72866,2744.4,2744.3,2.00546229]
[1740059686665,0.72866,2744.4,2744.3,2.73415229]
[1740059687066,0.72866,2744.4,2744.3,2.00546229]
[1740059687456,0.72866,2744.4,2744.3,2.73415229]
[1740059688268,0.72866,2744.4,2744.3,2.00546229]
[1740059692071,0.72866,2744.4,2744.3,2.73415229]
[1740059692470,0.72866,2744.4,2744.3,2.00546229]
[1740059692972,0.72866,2744.4,2744.3,0.00546229]
[1740059694370,0.72866,2744.4,2744.3,0.73415229]
[1740059695170,0.72866,2744.4,2744.3,0.00546229]
[1740059696468,0.72866,2744.4,2744.3,0.73415229]
[1740059696673,0.72866,2744.4,2744.3,0.00546229]
[1740059700879,0.7288,2743.9,2743.8,0.7288]
[1740059701071,0.7288,2743.9,2743.8,3.28826845]
[1740059701380,0.7288,2743.9,2743.8,2.7288]
[1740059701579,5.6028,2744.4,2743.8,2.55935369]
[1740059701879,0.7288,2744.0,2743.9,0.72877]
[1740059703982,1.27106,2744.1,2744.0,0.72877]
[1740059706984,0.7288,2744.0,2743.9,0.72877]
[1740059707286,0.7288,2743.9,2743.8,2.73427229]
[1740059707478,0.7288,2743.9,2743.8,3.29308867]
[1740059708378,0.72878,2744.0,2743.9,0.72877]
[1740059713485,0.5423,2744.1,2744.0,0.72877]
[1740059713675,0.72872,2744.2,2743.8,5.03529229]
[1740059713676,0.72872,2744.2,2744.1,0.72874]
[1740059717690,1.2708,2744.3,2744.2,0.72872]
[1740059717990,0.5421,2744.3,2743.9,5.0298]
[1740059718195,0.72874,2744.2,2744.1,0.72872]
[1740059719990,0.72874,2744.2,2744.1,1.28835864]
[1740059720291,0.72874,2744.2,2744.1,0.72872]
[1740059720691,0.72874,2744.2,2744.1,1.28838528]
[1740059720896,0.5421,2744.3,2744.2,0.72872]
[1740059721197,1.84176,2744.5,2744.4,0.72866]
[1740059721897,1.27886,2744.5,2744.4,0.72866]
[1740059723297,1.27886,2744.5,2744.4,2.72866]
[1740059724190,1.27886,2744.5,2744.4,2.0]
[1740059724996,1.27886,2744.5,2744.4,2.72866]
[1740059726199,1.27886,2744.5,2744.4,2.0]
[1740059726401,1.27886,2744.5,2744.4,2.72866]
[1740059728000,1.27886,2744.5,2744.4,2.0]
[1740059728502,1.27886,2744.5,2744.4,2.72866]
[1740059728895,1.27886,2744.5,2744.4,2.0]
[1740059730205,1.27886,2744.5,2744.4,2.72866]
[1740059737702,0.72866,2744.5,2744.4,2.72866]
[1740059737903,0.72863,2744.6,2744.5,0.72861]
[1740059739806,0.72866,2744.5,2744.4,2.72864]
[1740059748218,0.72866,2744.5,2744.4,3.28845651]
[1740059748515,0.72866,2744.5,2744.4,3.28845792]
[1740059748718,2.97288,2744.7,2744.6,0.72861]
[1740059748719,1.1514,2744.7,2744.6,0.72861]
[1740059748912,1.87998,2744.7,2744.6,2.72861]
[1740059749111,1.87998,2744.7,2744.6,3.2883154]
[1740059750014,1.87998,2744.7,2744.6,2.72861]
[1740059750914,1.87998,2744.7,2744.6,3.28833938]
[1740059752416,1.87998,2744.7,2744.6,2.72861]
[1740059752622,1.87998,2744.7,2744.6,3.28812392]
[1740059754222,1.87998,2744.7,2744.6,2.72861]
[1740059754420,1.87998,2744.7,2744.6,3.28799374]
[1740059756123,1.1514,2744.7,2744.6,3.28799374]
[1740059756326,1.87998,2744.7,2744.6,3.28799374]
[1740059756624,1.87998,2744.7,2744.6,3.28788653]
[1740059758017,0.5834,2744.7,2744.6,3.28788653]
[1740059758221,0.00546229,2744.8,2744.7,0.72858]
[1740059758423,0.00546229,2744.8,2744.7,7.57645653]
[1740059758616,0.00546229,2744.8,2744.7,7.01718]
[1740059758825,0.00546229,2744.8,2744.7,7.5761969]
[1740059759020,0.00546229,2744.8,2744.7,8.1129969]
[1740059760622,0.00546229,2744.8,2744.7,8.11282288]
[1740059762233,0.55,2745.1,2744.7,8.11282288]
[1740059762433,1.27848,2745.1,2745.0,0.7285]
[1740059762733,1.27848,2745.1,2745.0,2.7285]
[1740059763028,0.5705,2745.3,2745.0,2.0]
[1740059763235,1.84874,2745.3,2745.2,2.72845]
[1740059763632,1.84874,2745.3,2745.2,2.0]
[1740059763829,1.84874,2745.3,2745.2,2.72845]
[1740059764626,1.1203,2745.3,2745.2,2.72845]
[1740059765029,0.5705,2745.3,2745.2,2.72845]
[1740059765431,0.5705,2745.3,2745.2,3.27805]
[1740059766126,0.00546229,2745.4,2745.2,2.5496]
[1740059766332,0.00546229,2745.4,2745.3,5.93623]
[1740059770535,0.56986229,2745.4,2745.3,5.93623]
[1740059774939,1.12246229,2745.4,2745.3,5.93623]
[1740059777534,0.00546229,2745.4,2745.3,5.93623]
[1740059778238,0.00546229,2745.4,2745.3,6.4931131]
[1740059778439,0.00546229,2745.4,2745.3,5.93623]
[1740059781339,0.00546229,2745.4,2745.3,6.49324324]
[1740059781543,0.72826,2746.0,2745.6,0.72835]
[1740059781744,0.5559,2745.9,2745.8,3.93609]
[1740059782044,0.5559,2745.9,2745.8,5.93609]
[1740059782643,1.10372875,2746.1,2745.8,5.2078]
[1740059782938,0.54662875,2746.1,2746.0,2.72824]
[1740059783144,1.27483875,2746.1,2746.0,2.72824]
[1740059783642,0.54662875,2746.1,2746.0,2.72824]
[1740059784944,1.27483875,2746.1,2746.0,2.72824]
[1740059785243,1.27483875,2746.1,2746.0,0.72824]
[1740059785840,0.54662875,2746.1,2746.0,0.72824]
[1740059786239,1.27483875,2746.1,2746.0,0.72824]
[1740059788138,0.54662875,2746.1,2745.8,3.2078]
[1740059788343,1.28376,2746.0,2745.9,2.72824]
[1740059790650,0.5555,2746.0,2745.9,2.72824]
[1740059790839,0.54662875,2746.1,2746.0,2.72824]
[1740059791440,0.54662875,2746.1,2746.0,3.31154]
[1740059794043,0.00542875,2746.1,2746.0,3.31154]
[1740059794438,0.00542875,2746.1,2746.0,3.8687484]
[1740059794652,1.1414,2746.4,2746.0,3.8687484]
[1740059794844,1.1414,2746.4,2746.3,5.93596]
[1740059795548,0.5515,2746.4,2746.3,5.93596]
[1740059796951,0.72807,2746.7,2746.6,0.72805]
[1740059797150,1.27957,2746.7,2746.6,2.72805]
[1740059797650,1.27957,2746.7,2746.6,2.0]
[1740059800953,0.5515,2746.7,2746.3,3.2078]
[1740059801155,0.72813,2746.5,2746.4,0.7281]
[1740059801355,0.72813,2746.5,2746.4,2.7281]
[1740059802552,0.72813,2746.5,2746.4,2.0]
[1740059802758,0.72813,2746.4,2746.3,3.2078]
[1740059803056,0.72816,2746.3,2746.2,0.72818]